[Event "*** Titled Tuesday Blitz"]
[Site "Chess.com"]
[Date "2021.04.06"]
[Round "10"]
[White "Keks2017"]
[Black "CSB7"]
[Result "0-1"]
[WhiteElo "2563"]
[BlackElo "2695"]
[TimeControl "180+1"]
[EndTime "11:56:32 PDT"]
[Termination "CSB7 won by resignation"]

1. g3 {[%clk 0:02:59.5]} 1... Nf6 {[%clk 0:02:56.5]} 2. Bg2 {[%clk 0:02:57.6]}
2... d5 {[%clk 0:02:56.5]} 3. Nf3 {[%clk 0:02:54.9]} 3... c5 {[%clk 0:02:55.3]}
4. O-O {[%clk 0:02:54.8]} 4... Nc6 {[%clk 0:02:55.7]} 5. d3 {[%clk 0:02:55]}
5... e6 {[%clk 0:02:55]} 6. Nbd2 {[%clk 0:02:54.9]} 6... Be7 {[%clk 0:02:55.5]}
7. e4 {[%clk 0:02:54.9]} 7... O-O {[%clk 0:02:56.2]} 8. Re1 {[%clk 0:02:55.1]}
8... b5 {[%clk 0:02:56.4]} 9. e5 {[%clk 0:02:54.4]} 9... Nd7 {[%clk 0:02:56.6]}
10. Nf1 {[%clk 0:02:54.3]} 10... Bb7 {[%clk 0:02:56.9]} 11. h4 {[%clk 0:02:54]}
11... Qc7 {[%clk 0:02:57]} 12. Bf4 {[%clk 0:02:53.3]} 12... Rfc8 {[%clk
0:02:57.6]} 13. N1h2 {[%clk 0:02:52.4]} 13... Qd8 {[%clk 0:02:47.2]} 14. h5
{[%clk 0:02:50.6]} 14... h6 {[%clk 0:02:47.3]} 15. g4 {[%clk 0:02:49.7]} 15...
a5 {[%clk 0:02:42.4]} 16. Bg3 {[%clk 0:02:42.9]} 16... a4 {[%clk 0:02:31.1]} 17.
Nf1 {[%clk 0:02:32.7]} 17... a3 {[%clk 0:02:18]} 18. b3 {[%clk 0:02:32.6]} 18...
c4 {[%clk 0:02:14.3]} 19. d4 {[%clk 0:02:31.6]} 19... cxb3 {[%clk 0:02:09.9]}
20. cxb3 {[%clk 0:02:31]} 20... Nb4 {[%clk 0:02:00.6]} 21. Ne3 {[%clk
0:02:30.6]} 21... Rc3 {[%clk 0:01:51.2]} 22. Bf1 {[%clk 0:02:22.9]} 22... Qb6
{[%clk 0:01:38.2]} 23. Bf4 {[%clk 0:02:01.5]} 23... Rac8 {[%clk 0:01:13]} 24. g5
{[%clk 0:01:58.3]} 24... hxg5 {[%clk 0:01:13.9]} 25. Nxg5 {[%clk 0:01:57.7]}
25... Bxg5 {[%clk 0:01:13.3]} 26. Bxg5 {[%clk 0:01:57.2]} 26... Nc6 {[%clk
0:01:14.2]} 27. Nc2 {[%clk 0:01:46.1]} 27... Ncxe5 {[%clk 0:00:59]} 28. dxe5
{[%clk 0:01:45.7]} 28... Rxc2 {[%clk 0:00:56.6]} 29. Be3 {[%clk 0:01:39.9]}
29... d4 {[%clk 0:00:46.5]} 30. Qxd4 {[%clk 0:01:35.1]} 30... Qc6 {[%clk
0:00:45.2]} 31. Kh2 {[%clk 0:01:12.4]} 31... Qh1+ {[%clk 0:00:29]} 32. Kg3
{[%clk 0:01:12.1]} 32... Qf3+ {[%clk 0:00:29.6]} 33. Kh4 {[%clk 0:01:05.4]}
33... Nf8 {[%clk 0:00:17]} 34. Qg4 {[%clk 0:00:56.6]} 34... Qxg4+ {[%clk
0:00:07.5]} 35. Kxg4 {[%clk 0:00:56.1]} 35... Nd7 {[%clk 0:00:07.9]} 36. f4
{[%clk 0:00:52.4]} 36... b4 {[%clk 0:00:07.5]} 37. Bb5 {[%clk 0:00:43.1]} 37...
Nc5 {[%clk 0:00:05.5]} 38. Rec1 {[%clk 0:00:38.5]} 38... Ne4 {[%clk 0:00:02.9]}
39. Rxc2 {[%clk 0:00:36.8]} 39... Rxc2 {[%clk 0:00:03.8]} 40. Bd3 {[%clk
0:00:34.9]} 40... Rg2+ {[%clk 0:00:04]} 41. Kh3 {[%clk 0:00:34.4]} 41... Rg3+
{[%clk 0:00:04.3]} 42. Kh2 {[%clk 0:00:34.2]} 42... Rxe3 {[%clk 0:00:05.2]} 43.
Bxe4 {[%clk 0:00:33.9]} 43... Bxe4 {[%clk 0:00:06.1]} 44. Rc1 {[%clk 0:00:33.7]}
44... Bd5 {[%clk 0:00:06.6]} 45. Rc8+ {[%clk 0:00:32.3]} 45... Kh7 {[%clk
0:00:07.2]} 46. Rb8 {[%clk 0:00:32.5]} 46... Bxb3 {[%clk 0:00:07.2]} 47. Rxb4
{[%clk 0:00:31.6]} 47... Bxa2 {[%clk 0:00:07]} 48. Ra4 {[%clk 0:00:31.8]} 48...
Bd5 {[%clk 0:00:07.3]} 49. Ra7 {[%clk 0:00:30.4]} 49... a2 {[%clk 0:00:07.2]}
0-1

[Event "*** Titled Tuesday Blitz"]
[Site "Chess.com"]
[Date "2021.04.06"]
[Round "10"]
[White "Fighter008"]
[Black "kuli4ik"]
[Result "1/2-1/2"]
[WhiteElo "2645"]
[BlackElo "2873"]
[TimeControl "180+1"]
[EndTime "11:56:33 PDT"]
[Termination "Game drawn by repetition"]

1. e4 {[%clk 0:03:00.9]} 1... e6 {[%clk 0:02:59.8]} 2. d4 {[%clk 0:02:58.9]}
2... d5 {[%clk 0:03:00.3]} 3. Nc3 {[%clk 0:02:58.4]} 3... Be7 {[%clk 0:03:00.2]}
4. Be3 {[%clk 0:02:55.8]} 4... dxe4 {[%clk 0:02:59.3]} 5. Nxe4 {[%clk
0:02:55.7]} 5... Nd7 {[%clk 0:03:00.2]} 6. Qd2 {[%clk 0:02:54.9]} 6... Ngf6
{[%clk 0:03:00.5]} 7. Nxf6+ {[%clk 0:02:54]} 7... Nxf6 {[%clk 0:03:01.4]} 8.
O-O-O {[%clk 0:02:54.4]} 8... b6 {[%clk 0:03:01]} 9. Bb5+ {[%clk 0:02:52.3]}
9... Bd7 {[%clk 0:03:01.1]} 10. Be2 {[%clk 0:02:52.5]} 10... Bc6 {[%clk
0:03:00.9]} 11. Bf3 {[%clk 0:02:52.5]} 11... Bxf3 {[%clk 0:03:00]} 12. Nxf3
{[%clk 0:02:52.9]} 12... Qd5 {[%clk 0:03:00.1]} 13. Kb1 {[%clk 0:02:52.4]} 13...
O-O-O {[%clk 0:02:58.1]} 14. Qe2 {[%clk 0:02:51.7]} 14... Bd6 {[%clk 0:02:48]}
15. h3 {[%clk 0:02:47.4]} 15... h6 {[%clk 0:02:47.8]} 16. Rhe1 {[%clk
0:02:47.4]} 16... Kb8 {[%clk 0:02:46.6]} 17. c4 {[%clk 0:02:42.4]} 17... Qe4+
{[%clk 0:02:41.2]} 18. Qc2 {[%clk 0:02:42]} 18... Qxc2+ {[%clk 0:02:40.7]} 19.
Kxc2 {[%clk 0:02:42]} 19... c6 {[%clk 0:02:35.8]} 20. Ne5 {[%clk 0:02:36.7]}
20... Bxe5 {[%clk 0:02:33]} 21. dxe5 {[%clk 0:02:37.6]} 21... Nd7 {[%clk
0:02:27.6]} 22. Rd6 {[%clk 0:02:37.5]} 22... Kc7 {[%clk 0:02:22.1]} 23. f4
{[%clk 0:02:33.6]} 23... Nb8 {[%clk 0:02:03]} 24. c5 {[%clk 0:02:29.4]} 24...
Na6 {[%clk 0:01:56.5]} 25. a3 {[%clk 0:02:00.3]} 25... bxc5 {[%clk 0:01:51.2]}
26. Red1 {[%clk 0:01:59.8]} 26... Rxd6 {[%clk 0:01:50.5]} 27. Rxd6 {[%clk
0:01:58.4]} 27... h5 {[%clk 0:01:42.6]} 28. Kc3 {[%clk 0:01:56.5]} 28... Rb8
{[%clk 0:01:34.8]} 29. b3 {[%clk 0:01:54.6]} 29... Rb7 {[%clk 0:00:41.8]} 30.
Bf2 {[%clk 0:01:48.2]} 30... Nb8 {[%clk 0:00:37.6]} 31. Bxc5 {[%clk 0:01:46.7]}
31... Nd7 {[%clk 0:00:38]} 32. Bf2 {[%clk 0:01:46.1]} 32... Nb6 {[%clk
0:00:36.2]} 33. Bxb6+ {[%clk 0:01:46.1]} 33... axb6 {[%clk 0:00:36.2]} 34. a4
{[%clk 0:01:42.3]} 34... Rb8 {[%clk 0:00:36.4]} 35. b4 {[%clk 0:01:34.3]} 35...
Rg8 {[%clk 0:00:34.5]} 36. h4 {[%clk 0:01:33.5]} 36... Rh8 {[%clk 0:00:33.8]}
37. Kc4 {[%clk 0:01:32.2]} 37... Rh6 {[%clk 0:00:32.5]} 38. Rd3 {[%clk
0:01:28.5]} 38... Rg6 {[%clk 0:00:32.2]} 39. g3 {[%clk 0:01:29.1]} 39... f6
{[%clk 0:00:28.1]} 40. a5 {[%clk 0:01:27.5]} 40... fxe5 {[%clk 0:00:26.8]} 41.
fxe5 {[%clk 0:01:27.6]} 41... Rg4+ {[%clk 0:00:26.5]} 42. Kb3 {[%clk 0:01:25.5]}
42... c5 {[%clk 0:00:18.8]} 43. bxc5 {[%clk 0:01:08]} 43... bxa5 {[%clk
0:00:17]} 44. Rd6 {[%clk 0:01:05.5]} 44... Rxg3+ {[%clk 0:00:15.3]} 45. Ka4
{[%clk 0:01:05.7]} 45... Rc3 {[%clk 0:00:14.7]} 46. Rxe6 {[%clk 0:01:03.6]}
46... Rxc5 {[%clk 0:00:14.5]} 47. Re7+ {[%clk 0:01:00.3]} 47... Kc6 {[%clk
0:00:14.9]} 48. Rxg7 {[%clk 0:00:59.5]} 48... Rxe5 {[%clk 0:00:15]} 49. Rg6+
{[%clk 0:00:59.9]} 49... Kd7 {[%clk 0:00:14.1]} 50. Ra6 {[%clk 0:00:56.3]} 50...
Ke7 {[%clk 0:00:12.5]} 51. Rxa5 {[%clk 0:00:54.8]} 51... Re4+ {[%clk 0:00:13]}
52. Kb3 {[%clk 0:00:54.7]} 52... Rxh4 {[%clk 0:00:13.8]} 53. Kc3 {[%clk
0:00:55]} 53... Rh1 {[%clk 0:00:13.3]} 54. Kd3 {[%clk 0:00:55]} 54... h4 {[%clk
0:00:13.8]} 55. Ke3 {[%clk 0:00:54.9]} 55... h3 {[%clk 0:00:14.4]} 56. Rh5
{[%clk 0:00:53.2]} 56... Kf6 {[%clk 0:00:14.7]} 57. Kf2 {[%clk 0:00:51.6]} 57...
Kg6 {[%clk 0:00:14.5]} 58. Rh8 {[%clk 0:00:51.3]} 58... Kg5 {[%clk 0:00:14.9]}
59. Rg8+ {[%clk 0:00:51.3]} 59... Kf4 {[%clk 0:00:15]} 60. Rf8+ {[%clk
0:00:51.3]} 60... Kg4 {[%clk 0:00:15.9]} 61. Rg8+ {[%clk 0:00:51.6]} 61... Kf4
{[%clk 0:00:16.8]} 62. Rf8+ {[%clk 0:00:51.2]} 62... Kg4 {[%clk 0:00:17]} 63.
Rg8+ {[%clk 0:00:51.5]} 63... Kf4 {[%clk 0:00:17.4]} 1/2-1/2

[Event "*** Titled Tuesday Blitz"]
[Site "Chess.com"]
[Date "2021.04.06"]
[Round "10"]
[White "ukchessbomber"]
[Black "Airquake"]
[Result "1-0"]
[WhiteElo "2519"]
[BlackElo "2660"]
[TimeControl "180+1"]
[EndTime "11:56:36 PDT"]
[Termination "ukchessbomber won on time"]

1. d4 {[%clk 0:03:00.9]} 1... Nf6 {[%clk 0:02:46.4]} 2. c4 {[%clk 0:03:01.1]}
2... e6 {[%clk 0:02:46.4]} 3. Nc3 {[%clk 0:03:01.4]} 3... d5 {[%clk 0:02:46.8]}
4. cxd5 {[%clk 0:03:02.3]} 4... exd5 {[%clk 0:02:47.7]} 5. Bg5 {[%clk
0:03:02.9]} 5... Nbd7 {[%clk 0:02:43.4]} 6. e3 {[%clk 0:03:02.7]} 6... c6 {[%clk
0:02:43.1]} 7. Bd3 {[%clk 0:03:02.4]} 7... h6 {[%clk 0:02:42.8]} 8. Bh4 {[%clk
0:03:02.3]} 8... Be7 {[%clk 0:02:42.6]} 9. Nf3 {[%clk 0:03:02.8]} 9... b5 {[%clk
0:02:42.7]} 10. O-O {[%clk 0:02:59.3]} 10... a5 {[%clk 0:02:43.1]} 11. Rc1
{[%clk 0:02:59]} 11... O-O {[%clk 0:02:42.3]} 12. a4 {[%clk 0:02:58.4]} 12... b4
{[%clk 0:02:41.8]} 13. Ne2 {[%clk 0:02:58.7]} 13... c5 {[%clk 0:02:38.7]} 14.
dxc5 {[%clk 0:02:55.2]} 14... Bxc5 {[%clk 0:02:28.9]} 15. Ned4 {[%clk
0:02:21.5]} 15... Qb6 {[%clk 0:02:22.5]} 16. Qc2 {[%clk 0:02:02.5]} 16... Bb7
{[%clk 0:02:09.8]} 17. Bb5 {[%clk 0:01:59.3]} 17... Bd6 {[%clk 0:02:05.3]} 18.
Nf5 {[%clk 0:01:44.6]} 18... Rfc8 {[%clk 0:02:02.1]} 19. Qd3 {[%clk 0:01:44.8]}
19... Bf8 {[%clk 0:01:45.4]} 20. Qd4 {[%clk 0:01:01.9]} 20... Bc5 {[%clk
0:01:43.9]} 21. Qf4 {[%clk 0:01:00.1]} 21... Nf8 {[%clk 0:01:16.9]} 22. Nxh6+
{[%clk 0:00:50.9]} 22... Kh7 {[%clk 0:01:16.9]} 23. Nxf7 {[%clk 0:00:43.7]}
23... Ng6 {[%clk 0:01:11.3]} 24. Qf5 {[%clk 0:00:43.7]} 24... Ne4 {[%clk
0:01:01.1]} 25. N3e5 {[%clk 0:00:40.6]} 25... Rf8 {[%clk 0:00:50.8]} 26. Qh5+
{[%clk 0:00:37.8]} 26... Kg8 {[%clk 0:00:48.2]} 27. Nxg6 {[%clk 0:00:37.5]}
27... Kxf7 {[%clk 0:00:48]} 28. Nxf8+ {[%clk 0:00:33.6]} 28... Kxf8 {[%clk
0:00:47.5]} 29. Qh8+ {[%clk 0:00:31.3]} 29... Kf7 {[%clk 0:00:47.5]} 30. Qh5+
{[%clk 0:00:28.9]} 30... Kg8 {[%clk 0:00:47.4]} 31. Bd3 {[%clk 0:00:28.7]} 31...
Bxe3 {[%clk 0:00:23.2]} 32. Bxe4 {[%clk 0:00:23.9]} 32... Bxc1 {[%clk
0:00:23.1]} 33. Bh7+ {[%clk 0:00:23.2]} 33... Kh8 {[%clk 0:00:22.7]} 34. Bg6+
{[%clk 0:00:22.4]} 34... Bh6 {[%clk 0:00:21.4]} 35. Bg5 {[%clk 0:00:20.5]} 35...
Ra6 {[%clk 0:00:09.4]} 36. Bd3 {[%clk 0:00:20.6]} 36... Ra8 {[%clk 0:00:05]} 37.
Bg6 {[%clk 0:00:20.3]} 37... Ra6 {[%clk 0:00:04.8]} 38. Bf5 {[%clk 0:00:20.9]}
38... Ra8 {[%clk 0:00:04.2]} 39. Re1 {[%clk 0:00:21.5]} 39... Qc6 {[%clk
0:00:03.6]} 40. Bg6 {[%clk 0:00:20.8]} 40... Qd7 {[%clk 0:00:01.4]} 41. Bxh6
{[%clk 0:00:20.7]} 41... gxh6 {[%clk 0:00:02.3]} 42. Qxh6+ {[%clk 0:00:21.2]}
42... Kg8 {[%clk 0:00:03.2]} 43. Re5 {[%clk 0:00:19.1]} 43... Rf8 {[%clk
0:00:03.7]} 44. Rg5 {[%clk 0:00:18.5]} 44... Qg7 {[%clk 0:00:03.2]} 45. Bh7+
{[%clk 0:00:18.5]} 45... Kf7 {[%clk 0:00:03]} 46. Qxg7+ {[%clk 0:00:18.8]} 46...
Ke8 {[%clk 0:00:03.9]} 47. Re5+ {[%clk 0:00:19.4]} 1-0

[Event "*** Titled Tuesday Blitz"]
[Site "Chess.com"]
[Date "2021.04.06"]
[Round "10"]
[White "TC2304"]
[Black "mamonika"]
[Result "1-0"]
[WhiteElo "2282"]
[BlackElo "2058"]
[TimeControl "180+1"]
[EndTime "11:56:40 PDT"]
[Termination "TC2304 won on time"]

1. Nf3 {[%clk 0:03:00.9]} 1... Nf6 {[%clk 0:02:53.4]} 2. g3 {[%clk 0:03:00.9]}
2... g6 {[%clk 0:02:51.3]} 3. Bg2 {[%clk 0:03:01.2]} 3... Bg7 {[%clk 0:02:51.5]}
4. O-O {[%clk 0:03:01.9]} 4... O-O {[%clk 0:02:51.6]} 5. c4 {[%clk 0:03:02.5]}
5... c6 {[%clk 0:02:49.1]} 6. Nc3 {[%clk 0:02:54.2]} 6... d5 {[%clk 0:02:46.3]}
7. b3 {[%clk 0:02:54.7]} 7... d4 {[%clk 0:02:40.7]} 8. Nb1 {[%clk 0:02:49.1]}
8... Qc7 {[%clk 0:02:37.5]} 9. Bb2 {[%clk 0:02:47.9]} 9... e5 {[%clk 0:02:36.3]}
10. e3 {[%clk 0:02:36.8]} 10... Bg4 {[%clk 0:02:27.8]} 11. exd4 {[%clk
0:02:33.5]} 11... e4 {[%clk 0:02:28]} 12. Nc3 {[%clk 0:02:18.5]} 12... exf3
{[%clk 0:02:27.8]} 13. Bxf3 {[%clk 0:02:19.4]} 13... Bxf3 {[%clk 0:02:23.6]} 14.
Qxf3 {[%clk 0:02:19.2]} 14... Nbd7 {[%clk 0:02:21.1]} 15. Rfe1 {[%clk 0:02:14]}
15... Rfe8 {[%clk 0:02:20.5]} 16. Kg2 {[%clk 0:02:13.1]} 16... Nf8 {[%clk
0:02:09]} 17. Re3 {[%clk 0:02:04]} 17... Ne6 {[%clk 0:02:06.6]} 18. Ne2 {[%clk
0:01:55.3]} 18... Ng5 {[%clk 0:01:59.2]} 19. Qf4 {[%clk 0:01:49.6]} 19... Qxf4
{[%clk 0:01:54.6]} 20. Nxf4 {[%clk 0:01:49.2]} 20... Nfe4 {[%clk 0:01:47.8]} 21.
Rae1 {[%clk 0:01:43.8]} 21... Nd6 {[%clk 0:01:42.6]} 22. h4 {[%clk 0:01:38.8]}
22... Rxe3 {[%clk 0:01:39.6]} 23. dxe3 {[%clk 0:01:34.1]} 23... Nge4 {[%clk
0:01:39.5]} 24. Ba3 {[%clk 0:01:30]} 24... Rd8 {[%clk 0:01:24.8]} 25. f3 {[%clk
0:01:23.8]} 25... Nf6 {[%clk 0:01:24.5]} 26. g4 {[%clk 0:01:17.5]} 26... Bf8
{[%clk 0:01:09]} 27. Bb2 {[%clk 0:01:16.5]} 27... Bg7 {[%clk 0:01:01.6]} 28. Ba3
{[%clk 0:01:16.3]} 28... Nfe8 {[%clk 0:01:01.8]} 29. Nd3 {[%clk 0:01:00.6]}
29... f5 {[%clk 0:00:56.5]} 30. Nc5 {[%clk 0:00:51.8]} 30... fxg4 {[%clk
0:00:55.4]} 31. fxg4 {[%clk 0:00:50.1]} 31... Rd7 {[%clk 0:00:38.5]} 32. Ne6
{[%clk 0:00:46.9]} 32... Ne4 {[%clk 0:00:35.6]} 33. Rf1 {[%clk 0:00:35.3]} 33...
Rf7 {[%clk 0:00:35.5]} 34. Rxf7 {[%clk 0:00:28.8]} 34... Kxf7 {[%clk 0:00:36.4]}
35. Nd8+ {[%clk 0:00:28]} 35... Kg8 {[%clk 0:00:34.9]} 36. Nxb7 {[%clk
0:00:28.4]} 36... Nc3 {[%clk 0:00:20.3]} 37. Nd8 {[%clk 0:00:23.5]} 37... Nxa2
{[%clk 0:00:15.5]} 38. Nxc6 {[%clk 0:00:23]} 38... a6 {[%clk 0:00:10.9]} 39. d5
{[%clk 0:00:23]} 39... Bf8 {[%clk 0:00:06.5]} 40. Bb2 {[%clk 0:00:19.3]} 40...
Nb4 {[%clk 0:00:05.2]} 41. Ne5 {[%clk 0:00:16.6]} 41... Bc5 {[%clk 0:00:02.5]}
42. Kf3 {[%clk 0:00:15.6]} 42... Nd6 {[%clk 0:00:01.3]} 43. Nd7 {[%clk
0:00:15.6]} 43... Ba7 {[%clk 0:00:01.3]} 44. e4 {[%clk 0:00:15.7]} 1-0

[Event "*** Titled Tuesday Blitz"]
[Site "Chess.com"]
[Date "2021.04.06"]
[Round "10"]
[White "beto-betun"]
[Black "retropwr"]
[Result "1-0"]
[WhiteElo "2241"]
[BlackElo "2383"]
[TimeControl "180+1"]
[EndTime "11:56:42 PDT"]
[Termination "beto-betun won on time"]

1. d4 {[%clk 0:03:00.9]} 1... d6 {[%clk 0:03:00.2]} 2. Nf3 {[%clk 0:03:00.7]}
2... Bg4 {[%clk 0:02:59.4]} 3. g3 {[%clk 0:02:59.7]} 3... Bxf3 {[%clk
0:02:59.1]} 4. exf3 {[%clk 0:03:00.6]} 4... e6 {[%clk 0:02:57.4]} 5. Bg2 {[%clk
0:03:00.1]} 5... c6 {[%clk 0:02:57.7]} 6. f4 {[%clk 0:02:57.8]} 6... d5 {[%clk
0:02:56.5]} 7. O-O {[%clk 0:02:57.4]} 7... Bd6 {[%clk 0:02:57]} 8. c4 {[%clk
0:02:54.7]} 8... Ne7 {[%clk 0:02:56.8]} 9. cxd5 {[%clk 0:02:44.5]} 9... exd5
{[%clk 0:02:54.8]} 10. Re1 {[%clk 0:02:42.7]} 10... O-O {[%clk 0:02:54.6]} 11.
b3 {[%clk 0:02:32.7]} 11... Na6 {[%clk 0:02:44.7]} 12. Ba3 {[%clk 0:02:30]}
12... Re8 {[%clk 0:02:40.6]} 13. Bxd6 {[%clk 0:02:25.2]} 13... Qxd6 {[%clk
0:02:41.5]} 14. Nd2 {[%clk 0:02:19.3]} 14... Nc7 {[%clk 0:02:36.9]} 15. Nf3
{[%clk 0:02:16.2]} 15... f6 {[%clk 0:02:37]} 16. Qd3 {[%clk 0:02:11.1]} 16...
Qd7 {[%clk 0:02:34.8]} 17. h4 {[%clk 0:01:59.9]} 17... Ng6 {[%clk 0:02:26.9]}
18. h5 {[%clk 0:01:56]} 18... Nf8 {[%clk 0:02:26.1]} 19. Kh2 {[%clk 0:01:51.2]}
19... Rxe1 {[%clk 0:02:25]} 20. Rxe1 {[%clk 0:01:51.4]} 20... Re8 {[%clk
0:02:25.4]} 21. Bh3 {[%clk 0:01:39.4]} 21... Qd8 {[%clk 0:02:21.4]} 22. h6
{[%clk 0:01:33.3]} 22... g6 {[%clk 0:02:15.2]} 23. Re3 {[%clk 0:01:23.9]} 23...
Nb5 {[%clk 0:02:06.9]} 24. g4 {[%clk 0:01:10]} 24... Nd6 {[%clk 0:02:04]} 25. g5
{[%clk 0:01:01.2]} 25... Re4 {[%clk 0:02:00.8]} 26. Kg3 {[%clk 0:00:37.3]} 26...
Qe7 {[%clk 0:01:44.4]} 27. Nd2 {[%clk 0:00:33.6]} 27... fxg5 {[%clk 0:01:36.8]}
28. Nxe4 {[%clk 0:00:28.6]} 28... Nxe4+ {[%clk 0:01:05.3]} 29. Rxe4 {[%clk
0:00:18.7]} 29... dxe4 {[%clk 0:00:59]} 30. Qe3 {[%clk 0:00:19.1]} 30... gxf4+
{[%clk 0:00:57.1]} 31. Qxf4 {[%clk 0:00:18.4]} 31... g5 {[%clk 0:00:36.6]} 32.
Qe5 {[%clk 0:00:16.1]} 32... Qxe5+ {[%clk 0:00:32.1]} 33. dxe5 {[%clk 0:00:17]}
33... Ng6 {[%clk 0:00:26.9]} 34. e6 {[%clk 0:00:14.8]} 34... Nf4 {[%clk
0:00:25.2]} 35. Bf5 {[%clk 0:00:13.8]} 35... Nd5 {[%clk 0:00:04.4]} 36. Bxe4
{[%clk 0:00:11.3]} 36... Nf6 {[%clk 0:00:04.4]} 37. Bf5 {[%clk 0:00:11.1]} 37...
Kf8 {[%clk 0:00:04.5]} 38. f4 {[%clk 0:00:11.2]} 38... gxf4+ {[%clk 0:00:04.1]}
39. Kxf4 {[%clk 0:00:12.1]} 39... Ke7 {[%clk 0:00:04.2]} 40. Ke5 {[%clk
0:00:12.7]} 40... b6 {[%clk 0:00:03.1]} 41. Bd3 {[%clk 0:00:10.9]} 41... c5
{[%clk 0:00:02.4]} 42. a4 {[%clk 0:00:10.4]} 42... Ng4+ {[%clk 0:00:02.5]} 43.
Kf5 {[%clk 0:00:09.3]} 43... Nxh6+ {[%clk 0:00:03.4]} 44. Ke5 {[%clk 0:00:08.8]}
44... Ng4+ {[%clk 0:00:03]} 45. Kf5 {[%clk 0:00:06.4]} 45... h5 {[%clk
0:00:03.6]} 46. Kg5 {[%clk 0:00:05.7]} 46... Nf2 {[%clk 0:00:03.3]} 47. Bf5
{[%clk 0:00:04.2]} 1-0

[Event "*** Titled Tuesday Blitz"]
[Site "Chess.com"]
[Date "2021.04.06"]
[Round "10"]
[White "GMHess"]
[Black "albi1999"]
[Result "1-0"]
[WhiteElo "2752"]
[BlackElo "2591"]
[TimeControl "180+1"]
[EndTime "11:56:44 PDT"]
[Termination "GMHess won by resignation"]

1. b3 {[%clk 0:03:00.9]} 1... d5 {[%clk 0:02:58.2]} 2. Bb2 {[%clk 0:03:01.8]}
2... Bg4 {[%clk 0:02:58.7]} 3. h3 {[%clk 0:03:02]} 3... Bh5 {[%clk 0:02:56]} 4.
d3 {[%clk 0:03:02.6]} 4... Nd7 {[%clk 0:02:53.8]} 5. Nd2 {[%clk 0:03:03.1]} 5...
Ngf6 {[%clk 0:02:51.9]} 6. g4 {[%clk 0:03:03.5]} 6... Bg6 {[%clk 0:02:52]} 7.
Ngf3 {[%clk 0:03:04.1]} 7... c6 {[%clk 0:02:51]} 8. Bg2 {[%clk 0:03:03.7]} 8...
e6 {[%clk 0:02:51.1]} 9. e3 {[%clk 0:03:04]} 9... Bd6 {[%clk 0:02:51]} 10. Nh4
{[%clk 0:03:04.3]} 10... e5 {[%clk 0:02:36.3]} 11. Qe2 {[%clk 0:03:02]} 11...
Qe7 {[%clk 0:02:35.9]} 12. a3 {[%clk 0:02:56.1]} 12... O-O-O {[%clk 0:02:33.7]}
13. O-O {[%clk 0:02:49.3]} 13... Kb8 {[%clk 0:02:25.7]} 14. c4 {[%clk
0:02:43.5]} 14... Rhe8 {[%clk 0:02:14.6]} 15. b4 {[%clk 0:02:21.8]} 15... Bc7
{[%clk 0:02:13.8]} 16. b5 {[%clk 0:02:11.5]} 16... cxb5 {[%clk 0:02:12.4]} 17.
cxd5 {[%clk 0:02:11.5]} 17... Nc5 {[%clk 0:02:09.1]} 18. Nxg6 {[%clk 0:02:07.3]}
18... hxg6 {[%clk 0:02:10]} 19. e4 {[%clk 0:01:59.3]} 19... Na4 {[%clk 0:02:07]}
20. Nb3 {[%clk 0:01:16.4]} 20... Bb6 {[%clk 0:02:02.3]} 21. Bc1 {[%clk
0:01:04.9]} 21... Nc3 {[%clk 0:01:57.2]} 22. Qe1 {[%clk 0:00:51.4]} 22... Rc8
{[%clk 0:01:54.7]} 23. Bd2 {[%clk 0:00:44.8]} 23... Na4 {[%clk 0:01:43.5]} 24.
Bb4 {[%clk 0:00:44.5]} 24... Qd8 {[%clk 0:01:42.7]} 25. Qd2 {[%clk 0:00:40.6]}
25... Rh8 {[%clk 0:00:49.3]} 26. Rac1 {[%clk 0:00:24.2]} 26... Rxc1 {[%clk
0:00:49]} 27. Rxc1 {[%clk 0:00:23.5]} 27... Nh7 {[%clk 0:00:48.4]} 28. d4 {[%clk
0:00:17.2]} 28... Ng5 {[%clk 0:00:38.3]} 29. Qd3 {[%clk 0:00:14.7]} 29... exd4
{[%clk 0:00:35.7]} 30. e5 {[%clk 0:00:13.2]} 30... Nb2 {[%clk 0:00:31.5]} 31.
Qg3 {[%clk 0:00:11.4]} 31... Nc4 {[%clk 0:00:28.6]} 32. a4 {[%clk 0:00:08.3]}
32... bxa4 {[%clk 0:00:27.1]} 33. Rxc4 {[%clk 0:00:07.3]} 33... axb3 {[%clk
0:00:27.4]} 34. e6+ {[%clk 0:00:07.4]} 34... Ka8 {[%clk 0:00:25.9]} 35. exf7
{[%clk 0:00:05.7]} 35... Qf6 {[%clk 0:00:19.1]} 36. Qxb3 {[%clk 0:00:05.7]}
36... Qxf7 {[%clk 0:00:17.7]} 37. Bd6 {[%clk 0:00:05.2]} 37... Qd7 {[%clk
0:00:15]} 38. Bf4 {[%clk 0:00:04]} 38... Nf7 {[%clk 0:00:13.2]} 39. Rb4 {[%clk
0:00:03.6]} 39... g5 {[%clk 0:00:12.7]} 40. Bg3 {[%clk 0:00:03.1]} 40... Bc5
{[%clk 0:00:10.8]} 41. Rxb7 {[%clk 0:00:02.7]} 41... Qe8 {[%clk 0:00:03.9]} 42.
d6 {[%clk 0:00:02.2]} 42... Qe1+ {[%clk 0:00:02.8]} 43. Kh2 {[%clk 0:00:02.6]}
43... Rxh3+ {[%clk 0:00:02.7]} 44. Kxh3 {[%clk 0:00:03.5]} 1-0